fUST/lending_fUST_20240804
["ID","MTS","AMOUNT","RATE_DAILY","PERIOD"]
[334080063,1722745850171,-951.106611,0.00015608,2]
[334080064,1722745850180,-951.106611,0.00015608,2]
[334080065,1722745850190,-951.106611,0.00015608,2]
[334080066,1722745850199,-500.0,0.00015608,2]
[334080067,1722745850208,-951.106611,0.00015608,2]
[334080068,1722745850217,-951.106611,0.00015608,2]
[334080069,1722745850226,-1353.828327,0.00015608,2]
[334080070,1722745850236,-1353.828327,0.00015608,2]
[334080071,1722745850245,-1353.828327,0.00015608,2]
[334080072,1722745850260,-1353.828327,0.00015608,2]
[334080073,1722745850269,-1353.828327,0.00015608,2]
[334080074,1722745850279,-1353.828327,0.00015608,2]
[334080075,1722745850288,-500.0,0.00015608,2]
[334080076,1722745850297,-500.0,0.00015608,2]
[334080077,1722745850306,-500.0,0.00015608,2]
[334080078,1722745850315,-500.0,0.00015608,2]
[334080079,1722745850325,-151.0,0.00015608,2]
[334080080,1722745850334,-151.0,0.00015608,2]
[334080081,1722745850343,-151.0,0.00015608,2]
[334080082,1722745850352,-5981.56,0.00015608,2]
[334080083,1722745850362,-1686.28,0.00015608,2]
[334080084,1722745850372,-632.35436,0.00015608,2]
[334080085,1722745850381,-151.0,0.00015608,2]
[334080086,1722745850392,-632.35436,0.00015608,2]
[334080087,1722745850401,-154.133343,0.00015608,2]
[334080088,1722745850410,-632.35436,0.00015608,2]
[334080089,1722745850419,-632.35436,0.00015608,2]
[334080090,1722745850428,-500.0,0.00015608,2]
[334080091,1722745850437,-632.35436,0.00015608,2]
[334080092,1722745850446,-632.35436,0.00015608,2]
[334080093,1722745850456,-500.0,0.00015608,2]
[334080094,1722745850465,-500.0,0.00015608,2]
[334080095,1722745850477,-151.0,0.00015608,2]
[334080096,1722745850487,-151.0,0.00015608,2]
[334080097,1722745850497,-151.0,0.00015608,2]
[334080098,1722745850509,-500.0,0.00015608,2]
[334080099,1722745850518,-506.12725502,0.00015608,2]
[334080100,1722745850528,-270.267308,0.00015608,2]
[334080101,1722745850537,-151.0,0.00015608,2]
[334080102,1722745850546,-151.0,0.00015608,2]
[334080103,1722745850559,-151.0,0.00015608,2]
[334080104,1722745850568,-500.0,0.00015608,2]
[334080105,1722745850577,-151.0,0.00015608,2]
[334080106,1722745850586,-151.0,0.00015608,2]
[334080107,1722745850595,-153.134839,0.00015608,2]
[334080108,1722745850604,-500.0,0.00015608,2]
[334080109,1722745850613,-642.38,0.00015608,2]
[334080110,1722745850622,-500.0,0.00015608,2]
[334080111,1722745850632,-500.0,0.00015608,2]
[334080112,1722745850641,-500.0,0.00015608,2]
[334080113,1722745850651,-500.0,0.00015608,2]
[334080114,1722745850660,-500.0,0.00015608,2]
[334080115,1722745850669,-500.0,0.00015608,2]
[334080116,1722745850678,-500.0,0.00015608,2]
[334080117,1722745850687,-500.0,0.00015608,2]
[334080118,1722745850697,-500.0,0.00015608,2]
[334080119,1722745850706,-500.0,0.00015608,2]
[334080120,1722745850714,-500.0,0.00015608,2]
[334080121,1722745850723,-194.44977855,0.00015608,2]
[334080122,1722745850732,-500.0,0.00015608,2]
[334080123,1722745850741,-500.0,0.00015608,2]
[334080124,1722745850751,-500.0,0.00015608,2]
[334080125,1722745850761,-500.0,0.00015608,2]
[334080126,1722745850770,-212.538934,0.00015608,2]
[334080127,1722745850778,-212.538934,0.00015608,2]
[334080128,1722745850787,-212.538934,0.00015608,2]
[334080129,1722745850796,-212.538934,0.00015608,2]
[334080130,1722745850805,-212.538934,0.00015608,2]
[334080131,1722745850814,-500.0,0.00015608,2]
[334080132,1722745850823,-212.538934,0.00015608,2]
[334080133,1722745850832,-500.0,0.00015608,2]
[334080134,1722745850841,-212.538934,0.00015608,2]
[334080135,1722745850850,-212.538934,0.00015608,2]
[334080136,1722745850859,-500.0,0.00015608,2]
[334080137,1722745850868,-212.538934,0.00015608,2]
[334080138,1722745850877,-212.538934,0.00015608,2]
[334080139,1722745850885,-212.538934,0.00015608,2]
[334080140,1722745850895,-212.538934,0.00015608,2]
[334080141,1722745850904,-500.0,0.00015608,2]
[334080142,1722745850913,-542.84413028,0.00015608,2]
[334080143,1722745850923,-458.44916956,0.00015608,2]
[334080144,1722745850935,-500.0,0.00015608,2]
[334080145,1722745850946,-153.15899,0.00015608,2]
[334080146,1722745850954,-500.0,0.00015608,2]
[334080147,1722745850963,-151.0,0.00015608,2]
[334080148,1722745850974,-153.777471,0.00015608,2]
[334080149,1722745850984,-500.0,0.00015608,2]
[334080150,1722745850995,-500.0,0.00015608,2]
[334080151,1722745851005,-500.0,0.00015608,2]
[334080152,1722745851015,-151.0,0.00015608,2]
[334080153,1722745851024,-151.0,0.00015608,2]
[334080154,1722745851034,-500.0,0.00015608,2]
[334080155,1722745851044,-151.0,0.00015608,2]
[334080156,1722745851053,-151.0,0.00015608,2]
[334080157,1722745851063,-151.0,0.00015608,2]
[334080158,1722745851073,-154.197777,0.00015608,2]
[334080159,1722745851083,-500.0,0.00015608,2]
[334080160,1722745851092,-1008.185494,0.00015608,2]
[334080161,1722745851102,-1008.185494,0.00015608,2]
[334080162,1722745851112,-1008.185494,0.00015608,2]
[334080163,1722745851121,-1008.185494,0.00015608,2]
[334080164,1722745851130,-1008.185494,0.00015608,2]
[334080165,1722745851141,-1008.185494,0.00015608,2]
[334080166,1722745851150,-500.0,0.00015608,2]
[334080167,1722745851158,-1008.185494,0.00015608,2]
[334080168,1722745851168,-1008.185494,0.00015608,2]
[334080169,1722745851177,-1008.185494,0.00015608,2]
[334080170,1722745851186,-1008.185494,0.00015608,2]
[334080171,1722745851195,-1008.185494,0.00015608,2]
[334080172,1722745851203,-1008.185494,0.00015608,2]
[334080173,1722745851212,-500.0,0.00015608,2]
[334080174,1722745851222,-500.0,0.00015608,2]
[334080175,1722745851232,-500.0,0.00015608,2]
[334080176,1722745851241,-500.0,0.00015608,2]
[334080177,1722745851250,-500.0,0.00015608,2]
[334080178,1722745851259,-500.0,0.00015608,2]
[334080179,1722745851268,-500.0,0.00015608,2]
[334080180,1722745851279,-510.00557336,0.00015608,2]
[334080181,1722745851288,-500.0,0.00015608,2]
[334080182,1722745851298,-457.60698049,0.00015608,2]
[334080183,1722745851307,-500.0,0.00015608,2]
[334080184,1722745851316,-500.0,0.00015608,2]
[334080185,1722745851325,-63666.06819461,0.00015609,2]
[334080186,1722745851334,-151.427948,0.00015609,2]
[334080187,1722745851343,-408.403978,0.00015609,2]
[334080188,1722745851352,-408.403978,0.00015609,2]
[334080189,1722745851361,-151.0,0.00015609,2]
[334080190,1722745851370,-951.106611,0.00015609,2]
[334080191,1722745851379,-951.106611,0.00015609,2]
[334080192,1722745851388,-1353.828327,0.00015609,2]
[334080193,1722745851398,-1353.828327,0.00015609,2]
[334080194,1722745851407,-151.0,0.00015609,2]
[334080195,1722745851416,-632.35436,0.00015609,2]
[334080196,1722745851425,-632.35436,0.00015609,2]
[334080197,1722745851434,-151.0,0.00015609,2]
[334080198,1722745851519,-151.0,0.00015609,2]
[334080199,1722745851530,-212.538934,0.00015609,2]
[334080200,1722745851540,-212.538932,0.00015609,2]
[334080201,1722745851552,-1008.185494,0.00015609,2]
[334080202,1722745851565,-1008.185486,0.00015609,2]
[334080203,1722745851576,-153.0,0.00015644,2]
[334080204,1722745851587,-294.1746601,0.00015644,2]
[334080205,1722745851598,-206.9847165,0.00015644,2]
[334080206,1722745851608,-206.9847165,0.00015644,2]
[334080207,1722745851619,-206.9847165,0.00015644,2]
[334080208,1722745851629,-153.0,0.00015671,2]
[334080209,1722745851639,-2058.29,0.00015673,2]
[334080210,1722745851649,-37449.2387488,0.00015673,2]
[334080211,1722745851660,-151.46139,0.00015674,2]
[334080212,1722745851671,-714.315542,0.00015674,2]
[334080213,1722745851681,-714.315542,0.00015674,2]
[334080214,1722745851691,-151.0,0.00015674,2]
[334080215,1722745851700,-151.0,0.00015674,2]
[334080216,1722745851710,-151.0,0.00015674,2]
[334080217,1722745851720,-151.0,0.00015674,2]
[334080218,1722745851729,-151.0,0.00015674,2]
[334080219,1722745851738,-151.0,0.00015674,2]
[334080220,1722745851747,-485.227111,0.00015674,2]
[334080221,1722745851757,-485.227111,0.00015674,2]
[334080222,1722745851767,-408.403978,0.00015674,2]
[334080223,1722745851778,-408.403978,0.00015674,2]
[334080224,1722745851787,-1325.816428,0.00015674,2]
[334080225,1722745851796,-1325.816428,0.00015674,2]
[334080226,1722745851805,-151.0,0.00015674,2]
[334080227,1722745851815,-951.106611,0.00015674,2]
[334080228,1722745851824,-951.106611,0.00015674,2]
[334080229,1722745851833,-1353.828327,0.00015674,2]
[334080230,1722745851842,-1353.828327,0.00015674,2]
[334080231,1722745851851,-151.0,0.00015674,2]
[334080232,1722745851861,-632.35436,0.00015674,2]
[334080233,1722745851870,-632.35436,0.00015674,2]
[334080234,1722745851879,-151.0,0.00015674,2]
[334080235,1722745851889,-37449.2387488,0.00015675,2]
[334080236,1722745851899,-10605.29729263,0.00015677,5]
[334080237,1722745851909,-37449.2387488,0.00015677,2]
[334080238,1722745851918,-2058.29,0.00015683,2]
[334080239,1722745851927,-2058.29,0.00015683,2]
[334080240,1722745851936,-151.0,0.00015683,2]
[334080241,1722745851945,-151.061945,0.00015684,2]
[334080242,1722745851955,-714.315542,0.00015684,2]
[334080243,1722745851964,-714.315542,0.00015684,2]
[334080244,1722745851974,-714.315542,0.00015684,2]
[334080245,1722745851983,-714.315542,0.00015684,2]
[334080246,1722745851992,-151.0,0.00015684,2]
[334080247,1722745852001,-151.0,0.00015684,2]
[334080248,1722745852011,-151.0,0.00015684,2]
[334080249,1722745852020,-244.799413,0.00015684,2]
[334080250,1722745852029,-151.0,0.00015684,2]
[334080251,1722745852038,-151.0,0.00015684,2]
[334080252,1722745852047,-151.0,0.00015684,2]
[334080253,1722745852056,-262.56363502,0.00015684,2]
[334080254,1722745852065,-151.0,0.00015684,2]
[334080255,1722745852075,-151.0,0.00015684,2]
[334080256,1722745852084,-151.0,0.00015684,2]
[334080257,1722745852093,-301.544691,0.00015684,2]
[334080258,1722745852102,-485.227111,0.00015684,2]
[334080259,1722745852111,-485.227111,0.00015684,2]
[334080260,1722745852120,-485.227111,0.00015684,2]
[334080261,1722745852129,-485.227111,0.00015684,2]
[334080262,1722745852138,-1325.816428,0.00015684,2]
[334080263,1722745852147,-1325.816428,0.00015684,2]
[334080264,1722745852156,-2058.29,0.00015684,2]
[334080265,1722745852166,-1325.816428,0.00015684,2]
[334080266,1722745852175,-1325.816428,0.00015684,2]
[334080267,1722745852185,-151.0,0.00015684,2]
[334080268,1722745852194,-951.106611,0.00015684,2]
[334080269,1722745852204,-951.106611,0.00015684,2]
[334080270,1722745852214,-1353.828327,0.00015684,2]
[334080271,1722745852223,-1353.828327,0.00015684,2]
[334080272,1722745852233,-151.0,0.00015684,2]
[334080273,1722745852244,-632.35436,0.00015684,2]
[334080274,1722745852254,-632.35436,0.00015684,2]
[334080275,1722745852264,-151.0,0.00015684,2]
[334080276,1722745852274,-151.0,0.00015684,2]
[334080277,1722745852284,-151.0,0.00015685,2]
[334080278,1722745852293,-151.0,0.00015685,2]
[334080279,1722745852303,-151.0,0.00015685,2]
[334080280,1722745852312,-151.0,0.00015685,2]
[334080281,1722745852322,-151.0,0.00015685,2]
[334080282,1722745852333,-151.0,0.00015685,2]
[334080283,1722745852342,-151.0,0.00015685,2]
[334080284,1722745852352,-530.67,0.00015685,2]
[334080285,1722745852362,-714.315542,0.00015685,2]
[334080286,1722745852372,-714.315542,0.00015685,2]
[334080287,1722745852383,-714.315542,0.00015685,2]
[334080288,1722745852392,-714.315542,0.00015685,2]
[334080289,1722745852401,-151.0,0.00015685,2]
[334080290,1722745852411,-151.0,0.00015685,2]
[334080291,1722745852421,-151.0,0.00015685,2]
[334080292,1722745852430,-151.0,0.00015685,2]
[334080293,1722745852440,-151.0,0.00015685,2]
[334080294,1722745852449,-151.0,0.00015685,2]
[334080295,1722745852459,-485.227111,0.00015685,2]
[334080296,1722745852468,-485.227111,0.00015685,2]
[334080297,1722745852479,-485.227111,0.00015685,2]
[334080298,1722745852489,-485.227111,0.00015685,2]
[334080299,1722745852498,-408.403978,0.00015685,2]
[334080300,1722745852508,-408.403978,0.00015685,2]
[334080301,1722745852518,-408.403978,0.00015685,2]
[334080302,1722745852528,-408.403978,0.00015685,2]
[334080303,1722745852537,-1325.816428,0.00015685,2]
[334080304,1722745852546,-1325.816428,0.00015685,2]
[334080305,1722745852558,-1325.816428,0.00015685,2]
[334080306,1722745852568,-1325.816428,0.00015685,2]
[334080307,1722745852578,-151.0,0.00015685,2]
[334080308,1722745852587,-151.0,0.00015685,2]
[334080309,1722745852596,-951.106611,0.00015685,2]
[334080310,1722745852605,-951.106611,0.00015685,2]
[334080311,1722745852616,-951.106611,0.00015685,2]
[334080312,1722745852626,-951.106611,0.00015685,2]
[334080313,1722745852637,-1353.828327,0.00015685,2]
[334080314,1722745852648,-1353.828327,0.00015685,2]
[334080315,1722745852659,-1353.828327,0.00015685,2]
[334080316,1722745852669,-1353.82833287,0.00015685,2]
[334080317,1722745852680,-151.0,0.00015685,2]
[334080318,1722745852690,-151.0,0.00015685,2]
[334080319,1722745852700,-632.35436,0.00015685,2]
[334080320,1722745852710,-632.35436,0.00015685,2]
[334080321,1722745852719,-500.0,0.00015685,2]
[334080322,1722745852728,-632.35436,0.00015685,2]
[334080323,1722745852737,-632.354357,0.00015685,2]
[334080324,1722745852747,-151.0,0.00015685,2]
[334080325,1722745852757,-151.0,0.00015685,2]
[334080326,1722745852766,-151.0,0.00015685,2]
[334080327,1722745852775,-151.0,0.00015685,2]
[334080328,1722745852784,-37449.2387488,0.00015686,2]
[334080329,1722745852794,-175.934644,0.00015686,2]
[334080330,1722745852803,-175.934644,0.00015686,2]
[334080331,1722745852813,-151.0,0.00015686,2]
[334080332,1722745852822,-288.2,0.00015686,2]
[334080333,1722745852832,-667.048333,0.00015686,2]
[334080334,1722745852841,-667.048333,0.00015686,2]
[334080335,1722745852853,-530.67,0.00015686,2]
[334080336,1722745852862,-530.67,0.00015686,2]
[334080337,1722745852872,-2058.29,0.00015686,2]
[334080338,1722745852883,-2058.29,0.00015686,2]
[334080339,1722745852895,-2058.29,0.00015686,2]
[334080340,1722745852905,-2058.29,0.00015686,2]
[334080341,1722745852915,-5981.56,0.00015686,2]
[334080342,1722745852924,-5981.56,0.00015686,2]
[334080343,1722745852934,-500.0,0.00015686,2]
[334080344,1722745852943,-374.0344732,0.00015686,2]
[334080345,1722745852952,-151.0,0.00015687,2]
[334080346,1722745852961,-151.0,0.00015687,2]
[334080347,1722745852972,-151.0,0.00015687,2]
[334080348,1722745852982,-151.0,0.00015687,2]
[334080349,1722745852991,-151.0,0.00015687,2]
[334080350,1722745853001,-151.0,0.00015687,2]
[334080351,1722745853011,-259.267154,0.00015687,2]
[334080352,1722745853020,-151.0,0.00015687,2]
[334080353,1722745853030,-259.267154,0.00015687,2]
[334080354,1722745853039,-259.267154,0.00015687,2]
[334080355,1722745853049,-259.267154,0.00015687,2]
[334080356,1722745853058,-175.934644,0.00015687,2]
[334080357,1722745853067,-175.934644,0.00015687,2]
[334080358,1722745853077,-151.0,0.00015687,2]
[334080359,1722745853086,-151.912403,0.00015687,2]
[334080360,1722745853095,-667.048333,0.00015687,2]
[334080361,1722745853104,-667.048333,0.00015687,2]
[334080362,1722745853113,-151.0,0.00015687,2]
[334080363,1722745853123,-151.0,0.00015687,2]
[334080364,1722745853132,-151.0,0.00015687,2]
[334080365,1722745853141,-276.46018,0.00015687,2]
[334080366,1722745853151,-151.0,0.00015687,2]
[334080367,1722745853160,-530.67,0.00015687,2]
[334080368,1722745853171,-714.315542,0.00015687,2]
[334080369,1722745853181,-714.315542,0.00015687,2]
[334080370,1722745853191,-151.0,0.00015687,2]
[334080371,1722745853200,-151.0,0.00015687,2]
[334080372,1722745853210,-151.0,0.00015687,2]
[334080373,1722745853220,-485.227111,0.00015687,2]
[334080374,1722745853231,-485.227111,0.00015687,2]
[334080375,1722745853240,-408.403978,0.00015687,2]
[334080376,1722745853252,-408.403978,0.00015687,2]
[334080377,1722745853337,-1325.816428,0.00015687,2]
[334080378,1722745853347,-1325.816428,0.00015687,2]
[334080379,1722745853357,-151.0,0.00015687,2]
[334080380,1722745853366,-5981.56,0.00015687,2]
[334080381,1722745853375,-151.710485,0.00015688,2]
[334080382,1722745853385,-151.0,0.00015688,2]
[334080383,1722745853394,-151.0,0.00015688,2]
[334080384,1722745853404,-151.0,0.00015688,2]
[334080385,1722745853413,-259.267154,0.00015688,2]
[334080386,1722745853423,-259.267154,0.00015688,2]
[334080387,1722745853433,-175.934644,0.00015688,2]
[334080388,1722745853443,-175.934644,0.00015688,2]
[334080389,1722745853452,-151.0,0.00015688,2]
[334080390,1722745853463,-667.048333,0.00015688,2]
[334080391,1722745853476,-667.048333,0.00015688,2]
[334080392,1722745853485,-151.0,0.00015688,2]
[334080393,1722745853495,-151.0,0.00015688,2]
[334080394,1722745853505,-151.0,0.00015688,2]
[334080395,1722745853514,-151.0,0.00015688,2]
[334080396,1722745853523,-714.315542,0.00015688,2]
[334080397,1722745853533,-714.315542,0.00015688,2]
[334080398,1722745853542,-151.0,0.00015688,2]
[334080399,1722745853556,-151.0,0.00015688,2]
[334080400,1722745853567,-151.0,0.00015688,2]
[334080401,1722745853577,-485.227111,0.00015688,2]
[334080402,1722745853587,-485.227111,0.00015688,2]
[334080403,1722745853597,-408.403978,0.00015688,2]
[334080404,1722745853608,-408.403978,0.00015688,2]
[334080405,1722745853617,-1325.816428,0.00015688,2]
[334080406,1722745853627,-1325.816428,0.00015688,2]
[334080407,1722745853639,-2058.29,0.00015694,2]
[334080408,1722745853649,-714.315542,0.00015695,2]
[334080409,1722745853659,-714.315542,0.00015695,2]
[334080410,1722745853669,-151.0,0.00015695,2]
[334080411,1722745853679,-151.0,0.00015695,2]
[334080412,1722745853689,-151.0,0.00015695,2]
[334080413,1722745853698,-485.227111,0.00015695,2]
[334080414,1722745853707,-485.227111,0.00015695,2]
[334080415,1722745853717,-1325.816428,0.00015695,2]
[334080416,1722745853727,-1325.816428,0.00015695,2]
[334080417,1722745853736,-530.67,0.00015696,2]
[334080418,1722745853746,-530.67,0.00015696,2]
[334080419,1722745853756,-530.67,0.00015696,2]
[334080420,1722745853770,-530.67,0.00015696,2]
[334080421,1722745853779,-530.67,0.00015696,2]
[334080422,1722745853788,-530.67,0.00015696,2]
[334080423,1722745853798,-714.315542,0.00015696,2]
[334080424,1722745853807,-714.315542,0.00015696,2]
[334080425,1722745853816,-151.0,0.00015696,2]
[334080426,1722745853825,-151.0,0.00015696,2]
[334080427,1722745853835,-151.0,0.00015696,2]
[334080428,1722745853844,-485.227111,0.00015696,2]
[334080429,1722745853854,-485.227111,0.00015696,2]
[334080430,1722745853863,-408.403978,0.00015696,2]
[334080431,1722745853873,-408.403968,0.00015696,2]
[334080432,1722745853882,-1325.816428,0.00015696,2]
[334080433,1722745853891,-2058.29,0.00015696,2]
[334080434,1722745853900,-2058.29,0.00015696,2]
[334080435,1722745853910,-2058.29,0.00015696,2]
[334080436,1722745853919,-2058.29,0.00015696,2]
[334080437,1722745853929,-2058.29,0.00015696,2]
[334080438,1722745853940,-2058.29,0.00015696,2]
[334080439,1722745853951,-2058.29,0.00015696,2]
[334080440,1722745853960,-1325.816428,0.00015696,2]
[334080441,1722745853969,-5981.56,0.00015696,2]
[334080442,1722745853979,-5981.56,0.00015696,2]
[334080443,1722745853988,-5981.56,0.00015696,2]
[334080444,1722745853997,-5981.56,0.00015696,2]
[334080445,1722745854008,-5981.56,0.00015696,2]
[334080446,1722745854017,-502.07940977,0.00015697,2]
[334080447,1722745854027,-500.0,0.00015697,2]
[334080448,1722745854036,-503.21491463,0.00015697,2]
[334080449,1722745854045,-504.59994406,0.00015697,2]
[334080450,1722745854057,-500.0,0.00015697,2]
[334080451,1722745854067,-503.50873591,0.00015697,2]
[334080452,1722745854078,-500.0,0.00015697,2]
[334080453,1722745854088,-500.0,0.00015697,2]
[334080454,1722745854098,-502.53910453,0.00015697,2]
[334080455,1722745854107,-500.0,0.00015697,2]
[334080456,1722745854117,-500.0,0.00015697,2]
[334080457,1722745854127,-500.0,0.00015697,2]
[334080458,1722745854137,-514.52063512,0.00015697,2]
[334080459,1722745854146,-500.0,0.00015697,2]
[334080460,1722745854155,-508.9870357,0.00015697,2]
[334080461,1722745854166,-500.0,0.00015697,2]
[334080462,1722745854177,-500.0,0.00015697,2]
[334080463,1722745854188,-500.0,0.00015697,2]
[334080464,1722745854197,-500.0,0.00015697,2]
[334080465,1722745854207,-500.0,0.00015697,2]
[334080466,1722745854217,-500.0,0.00015697,2]
[334080467,1722745854226,-508.1231569,0.00015697,2]
[334080468,1722745854237,-478.46949852,0.00015697,2]
[334080469,1722745854247,-530.44956831,0.00015697,2]
[334080470,1722745854259,-410.73128566,0.00015697,2]
[334080471,1722745854271,-500.0,0.00015697,2]
[334080472,1722745854281,-502.52518298,0.00015697,2]
[334080473,1722745854290,-500.0,0.00015697,2]
[334080474,1722745854300,-539.53242029,0.00015697,2]
[334080475,1722745854309,-500.0,0.00015697,2]
[334080476,1722745854319,-506.46899637,0.00015697,2]
[334080477,1722745854329,-500.0,0.00015697,2]
[334080478,1722745854338,-500.0,0.00015697,2]
[334080479,1722745854348,-500.0,0.00015697,2]
[334080480,1722745854357,-500.0,0.00015697,2]
[334080481,1722745854367,-500.0,0.00015697,2]
[334080482,1722745854376,-500.0,0.00015697,2]
[334080483,1722745854386,-500.0,0.00015697,2]
[334080484,1722745854396,-500.0,0.00015697,2]
[334080485,1722745854405,-500.0,0.00015697,2]
[334080486,1722745854415,-500.0,0.00015697,2]
[334080487,1722745854424,-500.0,0.00015697,2]
[334080488,1722745854435,-513.16094682,0.00015697,2]
[334080489,1722745854444,-500.0,0.00015697,2]
[334080490,1722745854454,-500.0,0.00015697,2]
[334080491,1722745854463,-500.0,0.00015697,2]
[334080492,1722745854473,-500.0,0.00015697,2]
[334080493,1722745854487,-500.0,0.00015697,2]
[334080494,1722745854496,-177.31814081,0.00015697,2]
[334080495,1722745854510,-500.0,0.00015697,2]
[334080496,1722745854519,-151.0,0.00015697,2]
[334080497,1722745854529,-500.0,0.00015697,2]
[334080498,1722745854539,-500.0,0.00015697,2]
[334080499,1722745854548,-500.0,0.00015697,2]
[334080500,1722745854557,-500.0,0.00015697,2]
[334080501,1722745854567,-606.85410056,0.00015697,2]
[334080502,1722745854576,-646.10854396,0.00015697,2]
[334080503,1722745854586,-500.0,0.00015697,2]
[334080504,1722745854596,-500.0,0.00015697,2]
[334080505,1722745854605,-500.0,0.00015697,2]
[334080506,1722745854614,-502.69536839,0.00015697,2]
[334080507,1722745854624,-500.0,0.00015697,2]
[334080508,1722745854633,-500.0,0.00015697,2]
[334080509,1722745854642,-507.56108772,0.00015697,2]
[334080510,1722745854652,-500.0,0.00015697,2]
[334080511,1722745854661,-500.0,0.00015697,2]
[334080512,1722745854672,-500.0,0.00015697,2]
[334080513,1722745854682,-516.63158565,0.00015697,2]
[334080514,1722745854693,-500.0,0.00015697,2]
[334080515,1722745854704,-377.33911725,0.00015697,2]
[334080516,1722745854714,-500.0,0.00015697,2]
[334080517,1722745854725,-500.0,0.00015697,2]
[334080518,1722745854736,-500.0,0.00015697,2]
[334080519,1722745854745,-500.0,0.00015697,2]
[334080520,1722745854758,-500.0,0.00015697,2]
[334080521,1722745854767,-502.14850402,0.00015697,2]
[334080522,1722745854776,-528.85755404,0.00015697,2]
[334080523,1722745854785,-500.0,0.00015697,2]
[334080524,1722745854794,-151.0,0.00015697,2]
[334080525,1722745854803,-151.0,0.00015697,2]
[334080526,1722745854812,-151.0,0.00015697,2]
[334080527,1722745854821,-151.0,0.00015697,2]
[334080528,1722745854830,-151.0,0.00015697,2]
[334080529,1722745854839,-151.0,0.00015697,2]
[334080530,1722745854848,-589.83209123,0.00015697,2]
[334080531,1722745854856,-504.4947338,0.00015697,2]
[334080532,1722745854866,-504.06275825,0.00015697,2]
[334080533,1722745854875,-189.028067,0.00015697,2]
[334080534,1722745854883,-151.0,0.00015697,2]
[334080535,1722745854892,-153.663288,0.00015697,2]
[334080536,1722745854902,-189.028067,0.00015697,2]
[334080537,1722745854910,-500.0,0.00015697,2]
[334080538,1722745854919,-500.0,0.00015697,2]
[334080539,1722745854928,-151.0,0.00015697,2]
[334080540,1722745854937,-151.0,0.00015697,2]
[334080541,1722745854946,-152.244501,0.00015697,2]
[334080542,1722745855025,-151.0,0.00015697,2]
[334080543,1722745855037,-151.0,0.00015697,2]
[334080544,1722745855047,-151.0,0.00015697,2]
[334080545,1722745855058,-500.0,0.00015697,2]
[334080546,1722745855069,-151.0,0.00015697,2]
[334080547,1722745855078,-157.722398,0.00015697,2]
[334080548,1722745855087,-512.05915879,0.00015697,2]
[334080549,1722745855097,-500.0,0.00015697,2]
[334080550,1722745855106,-510.77829817,0.00015697,2]
[334080551,1722745855114,-500.0,0.00015697,2]
[334080552,1722745855124,-500.0,0.00015697,2]
[334080553,1722745855133,-500.0,0.00015697,2]
[334080554,1722745855142,-500.0,0.00015697,2]
[334080555,1722745855151,-512.15904019,0.00015697,2]
[334080556,1722745855161,-500.0,0.00015697,2]
[334080557,1722745855171,-500.0,0.00015697,2]
[334080558,1722745855180,-514.58319949,0.00015697,2]
[334080559,1722745855190,-500.0,0.00015697,2]
[334080560,1722745855199,-500.0,0.00015697,2]
[334080561,1722745855208,-500.0,0.00015697,2]
[334080562,1722745855217,-500.0,0.00015697,2]